bitfinex/quotes_ETHUSD_20250827
["timestamp","ask_amount","ask_price","bid_price","bid_amount"]
[1756258627770,0.3898,4573.4,4573.3,10.86999999]
[1756258627984,0.3898,4573.4,4573.3,14.61299999]
[1756258628570,0.3898,4573.4,4573.3,10.86999999]
[1756258628771,0.3898,4573.4,4573.3,14.61299999]
[1756258629792,0.0752,4573.4,4573.3,14.61299999]
[1756258630307,0.002,4573.4,4573.3,14.61299999]
[1756258631367,0.002,4573.4,4573.3,14.90679999]
[1756258631568,0.002,4573.4,4573.3,17.54770484]
[1756258632069,0.002,4573.4,4573.3,15.36109999]
[1756258632480,0.002,4573.4,4573.3,17.54770484]
[1756258632665,0.1116,4573.4,4573.3,15.36109999]
[1756258633502,0.1116,4573.4,4573.3,17.54770484]
[1756258633986,0.1116,4573.4,4573.3,15.36109999]
[1756258634187,0.1116,4573.4,4573.3,17.54770484]
[1756258634903,0.1116,4573.4,4573.3,14.61199999]
[1756258636301,0.1848,4573.4,4573.3,10.86999999]
[1756258636503,0.1848,4573.4,4573.3,14.61199999]
[1756258636904,0.1848,4573.4,4573.3,10.86999999]
[1756258637078,10.5694,4573.4,4573.3,14.61199999]
[1756258638008,10.5694,4573.4,4573.3,10.86999999]
[1756258638208,10.5694,4573.4,4573.3,14.61099999]
[1756258638902,10.5694,4573.4,4573.3,10.86999999]
[1756258639202,10.5694,4573.4,4573.3,14.61099999]
[1756258641008,10.2548,4573.4,4573.3,14.61099999]
[1756258643880,10.1816,4573.4,4573.3,14.61099999]
[1756258644285,10.2548,4573.4,4573.3,14.61099999]
[1756258647217,10.2548,4573.4,4573.3,10.86999999]
[1756258647516,10.2548,4573.4,4573.3,14.61099999]
[1756258647892,10.2548,4573.4,4573.3,14.60999999]
[1756258648504,10.2548,4573.4,4573.3,10.86999999]
[1756258648698,10.2548,4573.4,4573.3,14.60999999]
[1756258649023,10.2548,4573.4,4573.3,10.86999999]
[1756258649226,10.1816,4573.4,4573.3,14.60999999]
[1756258650017,10.2572,4573.4,4573.3,14.60999999]
[1756258653295,10.2572,4573.4,4572.8,0.001]
[1756258653296,3.0,4573.3,4572.8,0.001]
[1756258653529,8.1394605,4572.9,4572.8,0.001]
[1756258653832,8.4384605,4572.9,4572.8,8.644]
[1756258653990,8.5295605,4572.9,4572.8,8.644]
[1756258655129,10.71635662,4572.9,4572.8,8.644]
[1756258655625,8.5295605,4572.9,4572.8,8.644]
[1756258656824,8.5295605,4572.9,4572.8,5.221]
[1756258657006,8.5295605,4572.9,4572.8,8.96]
[1756258657516,8.87186649,4572.9,4572.8,8.96]
[1756258657726,8.87186649,4572.9,4572.8,5.221]
[1756258658029,8.78076649,4572.9,4572.8,8.96]
[1756258659833,15.85076649,4572.9,4572.8,8.96]
[1756258660036,18.03756261,4572.9,4572.8,8.96]
[1756258660628,15.85076649,4572.9,4572.8,8.96]
[1756258662945,15.85076649,4572.9,4572.8,5.221]
[1756258663261,3.0,4572.8,4572.4,3.739]
[1756258663418,0.2969,4572.5,4572.4,3.739]
[1756258663618,0.4065,4572.5,4572.4,3.739]
[1756258665455,0.4065,4572.5,4570.8,0.02]
[1756258665456,3.0,4572.3,4570.8,0.02]
[1756258665749,4.3322961,4572.5,4571.1,0.016]
[1756258665750,3.0,4571.5,4571.1,0.016]
[1756258665923,2.18751963,4571.4,4571.1,0.016]
[1756258666236,2.26076152,4571.3,4570.8,0.4847]
[1756258666418,0.4847,4571.3,4571.2,1.86]
[1756258666929,2.18751504,4571.4,4571.2,1.86]
[1756258667712,3.658099,4571.5,4571.2,1.86]
[1756258668120,3.658099,4571.5,4571.2,2.3247]
[1756258669208,0.34241618,4571.5,4571.4,0.3018]
[1756258669634,3.65793,4572.6,4571.4,0.7665]
[1756258669839,3.65793,4572.6,4571.4,0.3018]
[1756258669840,0.34238059,4572.1,4571.4,0.3018]
[1756258670144,0.34238059,4572.1,4571.5,0.4647]
[1756258670327,0.34238059,4572.1,4572.0,0.3018]
[1756258670535,0.34238059,4572.1,4572.0,4.5045]
[1756258671514,7.41238059,4572.1,4572.0,4.5045]
[1756258671838,10.41238059,4572.1,4572.0,4.5045]
[1756258674422,10.07,4572.1,4572.0,4.5045]
[1756258675561,10.1796,4572.1,4572.0,4.5045]
[1756258675722,3.0,4572.0,4571.2,0.001]
[1756258675924,3.0,4571.3,4569.7,0.001]
[1756258676221,2.18823168,4569.9,4569.7,0.001]
[1756258676449,8.35544493,4569.9,4569.7,0.001]
[1756258676753,8.1030605,4569.9,4569.7,0.001]
[1756258677136,10.29129218,4569.9,4569.7,0.001]
[1756258677343,5.43443168,4569.9,4569.7,0.001]
[1756258677542,3.2462,4569.9,4569.7,0.001]
[1756258678240,3.7003677,4569.9,4569.7,0.001]
[1756258678622,3.7003677,4569.9,4569.8,0.021]
[1756258679459,3.72772059,4569.9,4569.8,0.021]
[1756258679636,3.7003677,4569.9,4569.8,0.021]
[1756258680952,3.7027677,4569.9,4569.8,0.021]
[1756258681470,5.89099938,4569.9,4569.8,0.021]
[1756258682245,2.18839426,4569.6,4569.3,0.001]
[1756258682451,3.0,4569.3,4569.1,0.001]
[1756258682654,0.10535708,4569.2,4569.1,0.001]
[1756258682860,5.293924,4569.2,4569.1,0.001]
[1756258683023,2.26656692,4569.2,4569.1,0.001]
[1756258683220,2.63653947,4569.2,4569.1,0.001]
[1756258683419,2.18871063,4568.9,4568.8,0.021]
[1756258683653,2.21606951,4568.9,4568.8,0.021]
[1756258683871,2.29636951,4568.9,4568.8,0.021]
[1756258684723,2.18885435,4568.6,4568.3,0.001]
[1756258684959,16.18962141,4568.4,4568.3,0.001]
[1756258685257,2.18904601,4568.2,4568.1,0.001]
[1756258685458,2.21640908,4568.2,4568.1,0.001]
[1756258685659,2.21640908,4568.2,4567.3,0.001]
[1756258685660,2.18909393,4568.1,4567.3,0.001]
[1756258685846,0.1096,4567.9,4567.3,0.001]
[1756258686030,2.38578978,4567.9,4567.3,0.001]
[1756258686235,2.18935408,4567.6,4567.3,0.001]
[1756258686435,2.29902943,4567.4,4567.3,0.001]
[1756258686670,2.29902943,4567.4,4566.8,0.021]
[1756258686671,2.18966914,4566.9,4566.8,0.021]
[1756258686842,2.32664,4566.9,4566.8,5.051]
[1756258687175,2.39046914,4566.9,4566.8,5.051]
[1756258687535,0.2008,4566.9,4566.8,5.051]
[1756258687730,0.1096,4566.9,4566.8,5.051]
[1756258688536,2.39046914,4566.9,4566.8,5.051]
[1756258688759,5.76059611,4566.9,4566.8,5.051]
[1756258689037,5.73322525,4566.9,4566.8,5.051]
[1756258689283,2.18981298,4566.6,4566.5,0.001]
[1756258689443,2.21718564,4566.6,4566.5,0.001]
[1756258689638,0.23027266,4566.6,4566.5,0.001]
[1756258690040,0.13697266,4566.6,4566.5,0.001]
[1756258690240,0.23027266,4566.6,4566.5,0.001]
[1756258690466,0.2029,4566.6,4566.5,0.001]
[1756258690852,2.39271298,4566.6,4566.5,0.001]
[1756258694067,0.2029,4566.6,4566.5,0.001]
[1756258694379,0.1096,4566.6,4566.5,0.001]
[1756258694575,6.97227266,4566.6,4565.8,0.02]
[1756258694763,3.0,4566.5,4565.8,0.02]
[1756258694970,0.1096,4566.1,4565.8,0.02]
[1756258695370,0.1096,4566.1,4566.0,0.2945]
[1756258695668,0.21017565,4566.1,4566.0,0.001]
[1756258696487,0.1096,4566.1,4566.0,0.001]
[1756258696670,0.5392,4566.1,4566.0,0.001]
[1756258697078,0.56657565,4566.1,4566.0,0.001]
[1756258697680,0.5392,4566.1,4566.0,0.7231]
[1756258697903,0.88201421,4566.1,4566.0,0.7231]
[1756258705069,0.16109782,4567.9,4566.0,0.7231]
[1756258705070,3.741,4567.4,4566.0,0.7231]
[1756258705264,0.658701,4567.1,4566.1,0.4286]
[1756258705499,0.658701,4567.1,4567.0,0.2935]
[1756258705701,0.658701,4567.1,4567.0,0.7221]
[1756258706582,3.0,4567.3,4567.0,0.7221]
[1756258706986,0.658681,4567.2,4567.1,0.4286]
[1756258707210,0.658681,4567.2,4566.0,1.686]
[1756258707516,0.658681,4567.2,4567.1,0.2935]
[1756258707699,0.658681,4567.2,4567.1,0.7221]
[1756258708079,0.02736786,4567.4,4567.1,0.7221]
[1756258708407,0.34273419,4567.2,4567.1,0.7221]
[1756258708574,0.34273419,4567.2,4567.1,0.2935]
[1756258709320,0.34273419,4567.2,4567.1,0.7537]
[1756258713568,3.41593419,4567.2,4566.3,0.4602]
[1756258713713,2.18975603,4566.8,4566.0,1.686]
[1756258714117,2.18976767,4566.7,4566.0,1.686]
[1756258714341,0.02737266,4566.6,4566.0,1.686]
[1756258714557,5.21720422,4566.6,4566.0,0.001]
[1756258714757,0.02737326,4566.5,4566.0,0.001]
[1756258715061,0.1096,4566.1,4566.0,0.001]
[1756258715557,0.1096,4566.1,4566.0,0.7549]
[1756258725181,0.1096,4566.1,4566.0,0.2947]
[1756258725344,0.1096,4566.1,4566.0,0.001]
[1756258725740,0.1096,4566.1,4566.0,0.7549]
[1756258726478,0.1096,4566.1,4566.0,0.2947]
[1756258727444,0.1096,4566.1,4566.0,0.7549]
[1756258734979,0.1828,4566.1,4566.0,0.001]
[1756258735481,0.1096,4566.1,4566.0,0.001]
[1756258736672,10.1796,4566.1,4566.0,0.001]
[1756258737068,10.2528,4566.1,4566.0,0.001]
[1756258738096,10.1796,4566.1,4566.0,0.001]
[1756258738798,10.5223868,4566.1,4566.0,0.001]
[1756258739394,10.5223868,4566.1,4566.0,0.3126]
[1756258739698,10.5223868,4566.1,4566.0,0.7596]
[1756258740371,7.5223868,4566.1,4566.0,0.7596]
[1756258740583,0.1096,4566.1,4566.0,3.60970074]
[1756258740770,0.1096,4566.3,4566.0,2.0129501]
[1756258740977,0.1096,4566.3,4566.1,3.737]
[1756258741174,0.002,4566.8,4566.2,2.345]
[1756258741420,0.002,4566.8,4566.7,0.3116]
[1756258741559,0.002,4566.8,4566.3,3.737]
[1756258741764,0.1096,4566.4,4566.3,3.737]
[1756258741959,0.1096,4566.4,4566.2,1.685]
[1756258742165,0.1096,4566.4,4566.2,4.28]
[1756258742166,0.0732,4566.3,4566.2,4.28]
[1756258742788,3.1096,4566.4,4566.2,1.685]
[1756258743514,0.0732,4566.3,4566.2,1.685]
[1756258744016,0.0732,4566.3,4566.0,0.001]
[1756258744365,3.0,4566.1,4566.0,0.001]
[1756258744561,10.09737565,4566.1,4566.0,0.001]
[1756258744793,10.4602,4566.1,4566.0,0.001]
[1756258745578,10.1456,4566.1,4566.0,0.001]
[1756258746180,10.4578,4566.1,4566.0,0.001]
[1756258746772,10.76400973,4566.1,4566.0,0.001]
[1756258746972,16.97914694,4566.1,4566.0,0.001]
[1756258747193,2.19014871,4565.9,4565.8,0.02]
[1756258747512,20.6731308,4565.9,4565.8,0.02]
[1756258747665,2.19026222,4565.7,4565.5,0.001]
[1756258747998,3.42506308,4565.6,4565.5,0.001]
[1756258748201,3.81506308,4565.6,4565.5,0.001]
[1756258748379,6.31156543,4565.6,4565.5,0.001]
[1756258748581,6.28418678,4565.6,4565.5,0.001]
[1756258749090,5.49656646,4565.5,4564.8,0.02]
[1756258749295,3.0,4565.3,4564.8,0.02]
[1756258749498,0.2961,4565.1,4564.8,0.02]
[1756258749813,0.34287787,4565.3,4565.2,0.3116]
[1756258749979,0.34287787,4565.3,4565.0,0.448]
[1756258749980,0.45247787,4565.3,4565.0,0.448]
[1756258750308,0.45247787,4565.3,4565.2,0.3116]
[1756258750609,0.45247787,4565.3,4565.2,0.7586]
[1756258751433,2.19058524,4565.0,4563.8,0.02]
[1756258751724,4.46767787,4565.3,4563.8,0.02]
[1756258751725,3.0,4564.5,4563.8,0.02]
[1756258751923,0.0756,4563.9,4563.8,0.02]
[1756258752344,5.55479291,4563.9,4563.8,0.02]
[1756258752498,5.89777637,4563.9,4563.8,0.02]
[1756258752846,17.22468745,4563.9,4563.8,0.02]
[1756258753143,17.64271426,4563.9,4563.8,0.02]
[1756258753341,17.2997308,4563.9,4563.8,0.02]
[1756258753943,3.0,4563.1,4562.8,0.02]
[1756258754300,0.2961,4562.9,4562.8,0.02]
[1756258754916,0.2961,4562.9,4561.8,0.02]
[1756258755117,2.19217254,4561.7,4560.8,0.47]
[1756258755323,0.02740266,4561.6,4560.8,0.47]
[1756258755525,3.0,4561.4,4560.8,0.47]
[1756258757133,3.0,4561.4,4561.3,0.3116]
[1756258757334,3.0,4562.0,4561.3,0.7586]
[1756258757538,0.34315668,4561.4,4561.3,0.7586]
[1756258758040,3.1647799,4562.0,4561.3,0.7586]
[1756258758345,0.34315337,4561.4,4561.3,0.7586]
[1756258758551,3.1647799,4562.0,4561.3,0.7586]
[1756258758861,0.34315614,4561.4,4561.3,0.3116]
[1756258759161,0.02739726,4562.5,4561.3,0.3116]
[1756258759328,0.02739726,4562.5,4561.4,3.739]
[1756258759518,0.34313153,4561.5,4561.4,4.186]
[1756258759721,3.0,4562.7,4561.4,4.4976]
[1756258760020,0.16490277,4562.7,4561.5,0.447]
[1756258760247,11.03471108,4562.8,4561.5,0.447]
[1756258760446,0.34311437,4562.4,4561.5,0.447]
[1756258760922,0.34311437,4562.4,4561.6,3.739]
[1756258761250,0.02739846,4562.3,4561.5,0.447]
[1756258761449,0.02739846,4562.3,4561.6,3.739]
[1756258762051,0.1096,4561.7,4561.6,3.739]
[1756258762248,0.1096,4561.7,4561.6,4.4976]
[1756258762852,0.45272533,4561.7,4561.6,4.4976]
[1756258764035,0.1096,4561.7,4561.6,4.4976]
[1756258764231,0.1096,4561.7,4561.6,0.7586]
[1756258764438,0.1096,4561.7,4561.6,4.4976]
[1756258764756,0.1096,4561.7,4561.6,6.68981325]
[1756258764957,0.1096,4561.7,4561.6,7.77674393]
[1756258765169,0.1096,4562.0,4561.7,0.66]
[1756258765465,0.02,4562.8,4561.9,0.3116]
[1756258765636,0.02,4562.8,4562.5,2.19176949]
[1756258765838,0.02,4562.8,4562.7,0.3116]
[1756258766042,0.02,4562.8,4562.7,6.1836]
[1756258766247,0.02,4562.8,4562.7,2.4446]
[1756258766757,0.02,4562.8,4562.7,6.1836]
[1756258767135,0.02,4562.8,4562.7,2.4446]
[1756258768561,0.021,4562.8,4562.7,2.4446]
[1756258769769,0.021,4562.8,4562.7,6.1836]
[1756258769947,0.021,4562.8,4562.7,1.9976]
[1756258770254,0.021,4562.8,4562.7,5.7366]
[1756258770754,0.021,4562.8,4562.7,1.686]
[1756258771058,0.021,4562.8,4562.7,5.425]
[1756258771554,0.021,4562.8,4562.7,5.7344]
[1756258773032,0.021,4562.8,4562.7,6.2029]
[1756258777030,0.021,4562.8,4562.7,9.67487474]
[1756258780245,0.021,4562.8,4562.7,5.93587474]
[1756258780446,0.021,4562.8,4562.7,9.67387474]
[1756258780646,0.021,4562.8,4562.7,6.82219]
[1756258780874,0.021,4562.8,4562.7,8.39358474]
[1756258782254,0.021,4562.8,4562.7,6.2019]
[1756258783083,0.021,4562.8,4562.7,0.7779]
[1756258783277,0.021,4562.8,4562.7,6.2019]
[1756258784086,0.021,4562.8,4562.7,2.96958474]
[1756258784576,0.021,4562.8,4562.7,8.39358474]
[1756258784956,0.021,4562.8,4562.7,6.2019]
[1756258785780,0.3069,4562.8,4562.7,1.686]
[1756258785948,0.3069,4562.8,4562.7,5.424]
[1756258786961,0.021,4562.8,4562.7,5.424]
[1756258788180,0.3062,4562.8,4562.7,5.424]
[1756258788569,0.021,4562.8,4562.7,5.424]
[1756258788981,0.3062,4562.8,4562.7,5.424]
[1756258789956,0.3062,4562.8,4562.7,1.686]
[1756258790162,0.5194,4562.8,4562.6,3.737]
[1756258790474,0.5194,4562.8,4562.7,3.737]
[1756258790657,0.72277378,4562.8,4562.7,3.737]
[1756258791756,0.50957378,4562.8,4562.7,3.737]
[1756258792663,0.3062,4562.8,4562.7,3.737]
[1756258793392,0.021,4562.8,4562.7,3.737]
[1756258795397,0.021,4562.8,4562.7,4.0464]
[1756258796667,0.021,4562.8,4562.7,3.737]
[1756258797165,0.3069,4562.8,4562.7,3.737]
[1756258797596,0.51061376,4562.8,4562.7,3.737]
[1756258797798,0.3069,4562.8,4562.7,3.737]
[1756258798567,0.51061376,4562.8,4562.1,0.4685]
[1756258798796,0.20371376,4562.7,4562.2,3.737]
[1756258798965,0.021,4562.8,4562.3,0.4693]
[1756258799166,0.2852,4562.4,4562.0,0.004]
[1756258799391,3.04839545,4562.8,4562.1,3.737]
[1756258799595,0.20371376,4562.7,4562.1,3.737]
[1756258800402,0.20367464,4562.7,4562.1,3.737]
[1756258801866,0.02739665,4562.6,4562.1,3.737]
[1756258802095,0.20367464,4562.7,4562.5,0.2909]
[1756258802284,0.22467464,4562.8,4562.6,4.2063]
[1756258803393,0.22467464,4562.8,4562.7,0.2909]
[1756258803572,0.22467464,4562.8,4562.7,0.7602]
[1756258804766,0.021,4562.8,4562.7,0.7602]
[1756258806906,0.021,4562.8,4562.7,3.63218776]
[1756258807421,0.021,4562.8,4562.7,1.42910276]
[1756258807586,0.021,4562.8,4562.7,0.7602]
[1756258807794,0.021,4562.8,4562.7,4.4962]
[1756258808437,0.021,4562.8,4562.0,0.1136]
[1756258808735,0.021,4562.8,4562.1,4.2053]
[1756258808882,0.021,4562.8,4562.7,0.2909]
[1756258809078,0.021,4562.8,4562.7,4.0269]
[1756258809286,0.021,4562.8,4562.7,4.4962]
[1756258810396,0.021,4562.8,4562.7,0.7602]
[1756258810728,0.021,4562.8,4562.7,6.68788474]
[1756258812623,0.021,4562.8,4562.7,8.23584897]
[1756258813503,0.021,4562.8,4562.7,4.49984897]
[1756258813805,0.021,4562.8,4562.7,8.23584897]
[1756258814598,0.021,4562.8,4562.7,0.2909]
[1756258814805,0.021,4562.8,4562.7,4.0269]
[1756258815190,0.021,4562.8,4562.0,0.664]
[1756258815424,0.021,4562.8,4562.3,2.19187368]
[1756258815621,0.021,4562.8,4562.0,0.004]
[1756258815924,0.0732,4562.1,4562.0,0.004]
[1756258816101,0.0732,4562.1,4562.0,3.739]
[1756258817612,0.0732,4562.1,4562.0,0.004]
[1756258817802,0.0732,4562.1,4562.0,3.739]
[1756258818204,0.0732,4562.1,4562.0,0.004]
[1756258818387,0.0732,4562.1,4561.5,0.004]
[1756258818388,3.0,4562.0,4561.5,0.004]
[1756258818595,3.0,4561.7,4561.5,0.004]
[1756258818819,0.2802284,4561.6,4561.5,0.004]
[1756258819125,1.29412256,4561.6,4561.0,0.004]
[1756258819425,0.82522582,4561.5,4561.0,0.004]
[1756258819595,0.20326264,4561.4,4561.0,0.004]
[1756258819786,0.2854,4561.1,4561.0,0.004]
[1756258821594,0.4984,4561.1,4561.0,0.004]
[1756258822292,1.04465142,4561.1,4561.0,0.004]
[1756258822830,3.59429416,4561.0,4560.1,3.736]
[1756258822990,0.23046763,4560.9,4559.9,0.003]
[1756258823189,0.23046763,4560.9,4559.8,0.02]
[1756258823190,0.2847,4560.0,4559.8,0.02]
[1756258823390,0.24121288,4559.9,4559.8,0.02]
[1756258823587,0.44427364,4559.9,4559.8,0.02]
[1756258823823,0.72817364,4559.9,4559.8,0.02]
[1756258824042,1.07145628,4559.9,4559.8,0.02]
[1756258824226,1.0440434,4559.9,4559.8,0.02]
[1756258824521,0.84098264,4559.9,4559.8,0.02]
[1756258826228,0.4977,4559.9,4559.8,0.02]
[1756258826543,0.2839,4559.9,4559.8,0.02]
[1756258827920,3.0,4560.1,4559.8,0.3109]
[1756258828723,3.0,4560.1,4559.8,0.7538]
[1756258828926,3.0,4560.3,4559.9,0.4429]
[1756258829095,3.0,4560.8,4559.9,0.4429]
[1756258829295,3.4429,4560.6,4559.9,0.4429]
[1756258829592,4.52312654,4560.6,4559.9,0.4429]
[1756258829809,0.78612654,4560.6,4559.9,0.4429]
[1756258830535,0.34322654,4560.6,4559.9,0.4429]
[1756258831814,0.34322654,4560.6,4560.5,0.3128]
[1756258832021,0.34322654,4560.6,4560.5,0.7557]
[1756258833112,0.34322654,4560.6,4559.8,0.4629]
[1756258833638,0.0732,4559.9,4559.8,0.02]
[1756258833841,0.34322654,4560.6,4559.8,0.02]
[1756258834050,3.06195119,4561.2,4559.8,0.02]
[1756258834051,3.0,4560.4,4559.8,0.3328]
[1756258834639,0.02741047,4560.3,4559.8,0.3328]
[1756258834938,0.02741047,4560.3,4559.8,0.02]
[1756258835505,3.0,4560.5,4559.8,0.02]
[1756258836240,3.737,4560.5,4559.8,0.02]
[1756258837445,3.76440927,4560.5,4559.8,0.02]
[1756258837846,3.737,4560.5,4559.8,0.02]
[1756258839142,0.4469,4560.6,4559.8,0.4629]
[1756258839348,3.0,4560.5,4559.8,0.4629]
[1756258839642,0.4469,4560.6,4559.8,0.4629]
[1756258839849,0.34322544,4560.5,4559.8,0.4629]
[1756258842734,0.34322544,4560.5,4559.8,0.4669]
[1756258843131,0.34322544,4560.5,4560.4,0.3128]
[1756258843315,0.001,4560.6,4559.8,0.4669]
[1756258843316,0.001,4560.6,4560.0,0.4429]
[1756258843750,0.001,4560.6,4560.5,0.3128]
[1756258844258,0.001,4560.6,4560.5,0.7557]
[1756258845029,0.001,4560.6,4560.5,0.3128]
[1756258845233,0.001,4560.6,4560.5,0.7557]
[1756258845644,0.001,4560.6,4560.5,2.94844202]
[1756258846014,0.001,4560.6,4560.5,3.24328622]
[1756258846219,0.001,4560.6,4560.5,3.91471291]
[1756258847115,0.001,4561.1,4561.0,2.85250164]
[1756258847338,0.001,4561.1,4561.0,4.66052232]
[1756258847541,0.001,4561.1,4561.0,5.40480164]
[1756258847738,0.001,4561.1,4561.0,6.16453948]
[1756258847944,0.001,4561.1,4561.0,6.25243048]
[1756258848858,0.001,4561.1,4561.0,9.25243048]
[1756258849215,0.001,4561.1,4561.0,12.98743048]
[1756258850254,0.001,4562.7,4562.6,2.19173278]
[1756258850761,0.001,4562.7,4562.6,2.50453278]
[1756258850924,0.001,4562.7,4562.6,0.7557]
[1756258851551,0.10159605,4562.7,4561.7,3.735]
[1756258851856,0.0742,4562.7,4561.8,2.19211714]
[1756258852021,0.0742,4562.7,4561.7,5.92716035]
[1756258852220,0.4231,4562.6,4561.3,5.421]
[1756258852437,0.001,4562.7,4561.6,2.19217903]
[1756258853023,0.001,4562.7,4561.7,2.1921537]
[1756258853226,0.4266,4562.6,4561.3,5.421]
[1756258853462,0.02739726,4562.5,4561.3,5.421]
[1756258853975,0.02739726,4562.5,4561.4,2.19229487]
[1756258855626,0.02739726,4562.5,4561.3,5.421]
[1756258855834,0.001,4562.7,4561.7,2.1921572]
[1756258856258,0.001,4562.7,4561.8,2.63501294]
[1756258856468,0.001,4562.7,4561.8,0.4429]
[1756258857249,0.001,4562.7,4561.8,2.63500082]
[1756258857568,0.001,4562.7,4561.8,0.4429]
[1756258859581,0.001,4562.7,4561.3,5.421]
[1756258859878,3.0,4561.8,4560.8,3.936795]
[1756258860244,3.0,4561.8,4560.8,3.734]
[1756258860645,0.34313334,4561.7,4560.8,3.734]
[1756258860847,0.02740266,4561.6,4560.8,3.734]
[1756258861083,3.0,4561.4,4560.8,3.734]
[1756258861263,0.0732,4560.9,4560.0,3.734]
[1756258861456,3.0,4561.4,4560.3,0.444]
[1756258861998,0.34316342,4561.2,4560.4,2.19278659]
[1756258862164,0.34316342,4561.2,4561.1,0.3009]
[1756258862546,0.34316342,4561.2,4561.1,0.7449]
[1756258862745,7.07,4561.5,4561.1,0.7449]
[1756258863175,7.07,4561.5,4561.3,2.19235716]
[1756258863362,7.07,4561.5,4560.9,2.19250523]
[1756258863690,3.0,4561.4,4560.8,2.19259284]
[1756258864054,3.0,4561.4,4560.8,2.63659284]
[1756258864357,3.0,4561.4,4560.7,3.733]
[1756258864861,0.02740446,4561.3,4560.7,3.733]
[1756258865058,3.0,4561.4,4560.7,3.733]
[1756258865465,3.0,4561.4,4560.8,0.444]
[1756258866067,3.001,4561.8,4560.8,0.444]
[1756258866270,0.20288675,4561.7,4560.8,0.444]
[1756258866961,0.20288675,4561.7,4560.7,3.733]
[1756258867288,0.02740266,4561.6,4560.7,3.733]
[1756258867478,0.45400266,4561.6,4560.7,3.733]
[1756258867680,0.20288675,4561.5,4560.7,3.733]
[1756258867900,0.20288675,4561.5,4560.7,4.177]
[1756258868106,0.20288675,4561.7,4560.7,4.177]
[1756258869391,0.3431378,4561.5,4560.7,4.177]
[1756258869593,0.20288675,4561.4,4560.7,3.733]
[1756258870009,0.3431378,4561.5,4560.7,3.733]
[1756258870179,0.2031705,4561.4,4560.7,3.733]
[1756258870906,0.2031705,4561.4,4561.3,0.3009]
[1756258871207,0.2032405,4561.4,4560.8,0.444]
[1756258871513,0.2032405,4561.4,4560.7,3.733]
[1756258871813,0.02740446,4561.3,4560.7,3.733]
[1756258872016,0.2032405,4561.4,4560.7,3.733]
[1756258872180,0.2032405,4561.4,4560.8,0.444]
[1756258872778,0.2032405,4561.4,4561.3,0.3009]
[1756258873806,0.2032405,4561.4,4561.1,0.444]
[1756258873993,0.0732,4561.2,4560.7,3.733]
[1756258874194,0.0732,4561.2,4560.7,4.177]
[1756258874611,0.2032405,4561.4,4560.8,0.444]
[1756258876407,0.2032405,4561.4,4560.7,3.733]
[1756258877478,0.2032405,4561.4,4560.7,4.7781]
[1756258878429,0.23064436,4561.4,4560.7,4.7781]
[1756258879027,0.2032405,4561.4,4560.7,4.7781]
[1756258879197,0.23064436,4561.4,4560.7,4.7781]
[1756258879394,3.0,4560.8,4560.7,4.7781]
[1756258879599,3.0,4560.8,4560.7,1.79]
[1756258880428,3.0,4560.8,4560.7,1.346]
[1756258880594,3.20355691,4560.8,4560.7,1.0451]
[1756258881113,3.20355691,4560.8,4560.7,1.346]
[1756258882714,3.20355691,4560.8,4560.7,1.0451]
[1756258882930,3.27675691,4560.8,4560.7,1.0451]
[1756258883836,7.00893572,4560.8,4560.0,0.004]
[1756258884140,3.0,4560.3,4560.0,0.004]
[1756258884352,3.20373572,4560.3,4560.0,0.004]
[1756258884549,3.28043572,4560.3,4560.0,0.004]
[1756258885346,3.30784619,4560.3,4560.0,0.004]
[1756258885754,3.28043572,4560.3,4560.0,0.004]
[1756258886521,3.30784619,4560.3,4560.0,0.004]
[1756258887226,7.03984619,4560.3,4560.0,0.004]
[1756258887427,7.35568357,4560.3,4560.0,0.004]
[1756258887829,7.35568357,4560.3,4559.3,0.003]
[1756258888000,3.0,4559.5,4559.3,0.003]
[1756258888200,0.2311516,4559.4,4559.3,0.003]
[1756258888504,0.51863572,4559.4,4558.8,0.02]
[1756258888705,8.04695582,4558.9,4558.8,0.02]
[1756258888901,8.25069154,4558.9,4558.8,0.02]
[1756258889101,8.25069154,4558.9,4558.8,0.3154]
[1756258889402,3.11105925,4558.9,4558.8,0.3154]
[1756258890514,3.11105925,4558.9,4558.8,0.7796]
[1756258892246,3.11105925,4558.9,4558.8,0.02]
[1756258892409,3.11105925,4558.9,4558.8,0.7796]
[1756258892610,3.45436373,4558.9,4558.8,0.02]
[1756258892809,3.45436373,4558.9,4558.8,0.3154]
[1756258893006,3.45436373,4558.9,4558.8,0.7796]
[1756258896749,3.34330448,4558.9,4558.8,0.7796]
[1756258897266,3.34330448,4558.9,4558.8,0.3154]
[1756258897834,3.34330448,4558.9,4558.8,0.02]
[1756258898132,3.41650448,4558.9,4558.8,0.02]
[1756258898345,3.34330448,4558.9,4558.8,0.02]
[1756258899441,3.34330448,4558.9,4558.8,0.024]
[1756258900755,3.41650448,4558.9,4558.8,0.024]
[1756258901266,3.34330448,4558.9,4558.8,0.3194]
[1756258901569,3.34330448,4558.9,4558.8,0.7836]
[1756258904267,3.41650448,4558.9,4558.8,0.024]
[1756258904469,3.34330448,4558.9,4558.8,0.024]